[Event "Titled Tuesday Blitz March 28 Late 2023"]
[White "Papayan, Oleg"]
[Black "Cuenca Jimenez, Jose Fernando"]
[WhiteFideId "4193911"]
[BlackFideId "2255570"]
[WhiteElo "2153"]
[BlackElo "2429"]
[Result "0-1"]
[Round "06"]
[TimeControl "180+2"]
[Date "2023.03.28"]
[WhiteClock "0:00:07"]
[BlackClock "0:00:10"]

1. e4 {[%clk 0:02:57]}  d6 {[%clk 0:02:59]} 2. d4 {[%clk 0:02:57]}  Nf6 {[%clk 0:03:00]} 3. Nc3 {[%clk 0:02:57]}  e5 {[%clk 0:03:01]} 4. Nf3 {[%clk 0:02:56]}  Nbd7 {[%clk 0:03:01]} 5. Bc4 {[%clk 0:02:56]}  Be7 {[%clk 0:03:01]} 6. O-O {[%clk 0:02:52]}  O-O {[%clk 0:03:01]} 7. a4 {[%clk 0:02:52]}  c6 {[%clk 0:03:01]} 8. h3 {[%clk 0:02:45]}  b6 {[%clk 0:03:01]} 9. Re1 {[%clk 0:02:44]}  a6 {[%clk 0:03:00]} 10. Ba2 {[%clk 0:02:38]}  Rb8 {[%clk 0:03:00]} 11. Be3 {[%clk 0:02:11]}  b5 {[%clk 0:03:00]} 12. axb5 {[%clk 0:02:12]}  axb5 {[%clk 0:03:01]} 13. dxe5 {[%clk 0:02:13]}  dxe5 {[%clk 0:03:00]} 14. Nd2 {[%clk 0:01:51]}  Bc5 {[%clk 0:02:54]} 15. Qf3 {[%clk 0:01:35]}  Qe7 {[%clk 0:02:27]} 16. Rad1 {[%clk 0:01:34]}  Ra8 {[%clk 0:02:04]} 17. Bb3 {[%clk 0:01:32]}  Bd4 {[%clk 0:02:02]} 18. Nf1 {[%clk 0:01:17]}  Bxe3 {[%clk 0:01:36]} 19. Nxe3 {[%clk 0:01:15]}  g6 {[%clk 0:01:36]} 20. Ra1 {[%clk 0:00:54]}  Rxa1 {[%clk 0:01:34]} 21. Rxa1 {[%clk 0:00:54]}  Nc5 {[%clk 0:01:35]} 22. Rd1 {[%clk 0:00:27]}  b4 {[%clk 0:01:07]} 23. Na4 {[%clk 0:00:24]}  Ncxe4 {[%clk 0:01:04]} 24. Nc4 {[%clk 0:00:20]}  c5 {[%clk 0:00:48]} 25. c3 {[%clk 0:00:06]}  Bb7 {[%clk 0:00:42]} 26. Qe3 {[%clk 0:00:06]}  bxc3 {[%clk 0:00:36]} 27. bxc3 {[%clk 0:00:07]}  Bc6 {[%clk 0:00:13]} 28. f3 {[%clk 0:00:05]}  Bxa4 {[%clk 0:00:11]} 29. Bxa4 {[%clk 0:00:06]}  Ng3 {[%clk 0:00:10]} 30. Qxe5 {[%clk 0:00:03]}  Qxe5 {[%clk 0:00:11]} 31. Nxe5 {[%clk 0:00:04]}  Ne2+ {[%clk 0:00:11]} 32. Kf2 {[%clk 0:00:04]}  Nxc3 {[%clk 0:00:12]} 33. Rd6 {[%clk 0:00:01]}  Nfe4+ {[%clk 0:00:13]} 34. fxe4 {[%clk 0:00:02]}  Nxe4+ {[%clk 0:00:13]} 35. Ke3 {[%clk 0:00:02]}  Nxd6 {[%clk 0:00:14]} 36. Nd7 {[%clk 0:00:02]}  Rc8 {[%clk 0:00:11]} 37. Nb6 {[%clk 0:00:01]}  Rb8 {[%clk 0:00:08]} 38. Nd5 {[%clk 0:00:02]}  Kg7 {[%clk 0:00:07]} 39. Bc6 {[%clk 0:00:02]}  Rb2 {[%clk 0:00:06]} 40. g4 {[%clk 0:00:02]}  Rb3+ {[%clk 0:00:05]} 41. Kf4 {[%clk 0:00:03]}  Rxh3 {[%clk 0:00:06]} 42. Ne7 {[%clk 0:00:03]}  Rh2 {[%clk 0:00:05]} 43. g5 {[%clk 0:00:03]}  Nf5 {[%clk 0:00:05]} 44. Nxf5+ {[%clk 0:00:03]}  gxf5 {[%clk 0:00:05]} 45. Kxf5 {[%clk 0:00:04]}  c4 {[%clk 0:00:05]} 46. Ke5 {[%clk 0:00:02]}  c3 {[%clk 0:00:06]} 47. Kd4 {[%clk 0:00:03]}  c2 {[%clk 0:00:06]} 48. Be4 {[%clk 0:00:03]}  c1=Q {[%clk 0:00:06]} 49. Ke5 {[%clk 0:00:04]}  Qxg5+ {[%clk 0:00:06]} 50. Bf5 {[%clk 0:00:05]}  Re2+ {[%clk 0:00:07]} 51. Kd6 {[%clk 0:00:05]}  Qxf5 {[%clk 0:00:07]} 52. Kc7 {[%clk 0:00:05]}  Qd3 {[%clk 0:00:08]} 53. Kb8 {[%clk 0:00:05]}  Rc2 {[%clk 0:00:09]} 54. Ka8 {[%clk 0:00:06]}  Qb3 {[%clk 0:00:09]} 55. Ka7 {[%clk 0:00:07]}  Ra2# {[%clk 0:00:10]} 0-1


[Site "https://www.chess.com"]

[Event "Titled Tuesday Blitz March 28 Late 2023"]
[White "Kokoszczynski, Jan"]
[Black "Djokic, Mihailo"]
[WhiteFideId "1174460"]
[BlackFideId "976440"]
[WhiteElo "2139"]
[BlackElo "2294"]
[Result "0-1"]
[Round "06"]
[TimeControl "180+2"]
[Date "2023.03.28"]
[WhiteClock "0:00:08"]
[BlackClock "0:00:15"]

1. c4 {[%clk 0:03:00]}  e5 {[%clk 0:02:59]} 2. Nc3 {[%clk 0:03:01]}  Nc6 {[%clk 0:02:59]} 3. Nf3 {[%clk 0:03:00]}  Nf6 {[%clk 0:02:59]} 4. e4 {[%clk 0:03:00]}  Bb4 {[%clk 0:02:58]} 5. d3 {[%clk 0:02:57]}  d6 {[%clk 0:02:58]} 6. a3 {[%clk 0:02:58]}  Bc5 {[%clk 0:02:58]} 7. b4 {[%clk 0:02:53]}  Bd4 {[%clk 0:02:57]} 8. Nxd4 {[%clk 0:02:48]}  Nxd4 {[%clk 0:02:57]} 9. Be3 {[%clk 0:02:35]}  a5 {[%clk 0:02:56]} 10. Bxd4 {[%clk 0:02:25]}  exd4 {[%clk 0:02:52]} 11. Ne2 {[%clk 0:02:26]}  c5 {[%clk 0:02:34]} 12. b5 {[%clk 0:02:12]}  a4 {[%clk 0:02:33]} 13. Ng3 {[%clk 0:02:10]}  h5 {[%clk 0:02:32]} 14. h4 {[%clk 0:02:10]}  Ng4 {[%clk 0:02:30]} 15. Be2 {[%clk 0:02:07]}  Qf6 {[%clk 0:02:30]} 16. Bxg4 {[%clk 0:01:58]}  hxg4 {[%clk 0:02:11]} 17. h5 {[%clk 0:01:57]}  Be6 {[%clk 0:01:45]} 18. Qd2 {[%clk 0:01:54]}  b6 {[%clk 0:01:43]} 19. O-O-O {[%clk 0:01:32]}  Kd7 {[%clk 0:01:42]} 20. Rdf1 {[%clk 0:01:27]}  Qh6 {[%clk 0:01:38]} 21. Rh4 {[%clk 0:01:00]}  Qxd2+ {[%clk 0:01:31]} 22. Kxd2 {[%clk 0:01:01]}  g6 {[%clk 0:01:20]} 23. Rfh1 {[%clk 0:00:56]}  Rh6 {[%clk 0:01:12]} 24. hxg6 {[%clk 0:00:55]}  Rxg6 {[%clk 0:01:11]} 25. Rh8 {[%clk 0:00:40]}  Rgg8 {[%clk 0:01:10]} 26. Rxg8 {[%clk 0:00:33]}  Rxg8 {[%clk 0:01:10]} 27. Ne2 {[%clk 0:00:29]}  Ke7 {[%clk 0:01:02]} 28. Rh5 {[%clk 0:00:24]}  Kf6 {[%clk 0:00:48]} 29. Nf4 {[%clk 0:00:22]}  Rg7 {[%clk 0:00:33]} 30. Rh6+ {[%clk 0:00:14]}  Ke7 {[%clk 0:00:31]} 31. Rh8 {[%clk 0:00:11]}  g3 {[%clk 0:00:29]} 32. f3 {[%clk 0:00:06]}  Rg5 {[%clk 0:00:15]} 33. Rh4 {[%clk 0:00:04]}  Kd7 {[%clk 0:00:14]} 34. Ne2 {[%clk 0:00:04]}  Rg8 {[%clk 0:00:12]} 35. f4 {[%clk 0:00:03]}  f5 {[%clk 0:00:13]} 36. Rh7+ {[%clk 0:00:01]}  Ke8 {[%clk 0:00:12]} 37. e5 {[%clk 0:00:02]}  dxe5 {[%clk 0:00:12]} 38. fxe5 {[%clk 0:00:03]}  Rg4 {[%clk 0:00:12]} 39. Rb7 {[%clk 0:00:03]}  f4 {[%clk 0:00:10]} 40. Ng1 {[%clk 0:00:03]}  Rh4 {[%clk 0:00:09]} 41. Ke2 {[%clk 0:00:03]}  Bg4+ {[%clk 0:00:08]} 42. Kf1 {[%clk 0:00:03]}  Rh1 {[%clk 0:00:07]} 43. Rxb6 {[%clk 0:00:04]}  f3 {[%clk 0:00:08]} 44. gxf3 {[%clk 0:00:04]}  Bh3+ {[%clk 0:00:08]} 45. Ke2 {[%clk 0:00:03]}  Rxg1 {[%clk 0:00:08]} 46. f4 {[%clk 0:00:04]}  Rg2+ {[%clk 0:00:09]} 47. Kf3 {[%clk 0:00:04]}  Rg1 {[%clk 0:00:09]} 48. Ra6 {[%clk 0:00:04]}  g2 {[%clk 0:00:10]} 49. b6 {[%clk 0:00:02]}  Rf1+ {[%clk 0:00:10]} 50. Ke4 {[%clk 0:00:03]}  g1=Q {[%clk 0:00:10]} 51. Kd5 {[%clk 0:00:04]}  Bg2+ {[%clk 0:00:11]} 52. Kd6 {[%clk 0:00:04]}  Bb7 {[%clk 0:00:10]} 53. Ra7 {[%clk 0:00:04]}  Qg6+ {[%clk 0:00:11]} 54. e6 {[%clk 0:00:04]}  Re1 {[%clk 0:00:11]} 55. Rxb7 {[%clk 0:00:04]}  Qxe6+ {[%clk 0:00:11]} 56. Kc7 {[%clk 0:00:05]}  Qe7+ {[%clk 0:00:11]} 57. Kb8 {[%clk 0:00:05]}  Qd8+ {[%clk 0:00:12]} 58. Ka7 {[%clk 0:00:06]}  Re7 {[%clk 0:00:13]} 59. Rxe7+ {[%clk 0:00:06]}  Kxe7 {[%clk 0:00:13]} 60. b7 {[%clk 0:00:07]}  Qa5+ {[%clk 0:00:13]} 61. Kb8 {[%clk 0:00:07]}  Kd7 {[%clk 0:00:14]} 62. f5 {[%clk 0:00:07]}  Qc7+ {[%clk 0:00:13]} 63. Ka8 {[%clk 0:00:08]}  Qa5+ {[%clk 0:00:13]} 64. Kb8 {[%clk 0:00:08]}  Kc6 {[%clk 0:00:14]} 65. f6 {[%clk 0:00:08]}  Qc7+ {[%clk 0:00:14]} 66. Ka8 {[%clk 0:00:08]}  Qxb7# {[%clk 0:00:15]} 0-1


[Site "https://www.chess.com"]

[Event "Titled Tuesday Blitz March 28 Late 2023"]
[White "Mazurkiewicz, Michal"]
[Black "Khumalo, Keith"]
[WhiteFideId "1124943"]
[BlackFideId "14319470"]
[WhiteElo "2054"]
[BlackElo "2056"]
[Result "0-1"]
[Round "06"]
[TimeControl "180+2"]
[Date "2023.03.28"]
[WhiteClock "0:00:04"]
[BlackClock "0:01:37"]

1. e4 {[%clk 0:03:00]}  c5 {[%clk 0:02:59]} 2. Nf3 {[%clk 0:03:00]}  d6 {[%clk 0:03:00]} 3. g3 {[%clk 0:03:00]}  Nf6 {[%clk 0:02:59]} 4. d3 {[%clk 0:03:00]}  e5 {[%clk 0:02:53]} 5. Bg2 {[%clk 0:03:00]}  Nc6 {[%clk 0:02:53]} 6. O-O {[%clk 0:03:01]}  Be7 {[%clk 0:02:53]} 7. Nc3 {[%clk 0:03:02]}  h6 {[%clk 0:02:53]} 8. Nd2 {[%clk 0:03:02]}  Be6 {[%clk 0:02:52]} 9. Nc4 {[%clk 0:03:02]}  d5 {[%clk 0:02:52]} 10. exd5 {[%clk 0:03:01]}  Nxd5 {[%clk 0:02:53]} 11. Re1 {[%clk 0:02:59]}  Nxc3 {[%clk 0:02:53]} 12. bxc3 {[%clk 0:02:55]}  Bxc4 {[%clk 0:02:53]} 13. dxc4 {[%clk 0:02:54]}  Qxd1 {[%clk 0:02:54]} 14. Rxd1 {[%clk 0:02:54]}  Na5 {[%clk 0:02:54]} 15. Rb1 {[%clk 0:02:21]}  Rb8 {[%clk 0:02:39]} 16. f4 {[%clk 0:02:20]}  f6 {[%clk 0:02:33]} 17. fxe5 {[%clk 0:02:13]}  fxe5 {[%clk 0:02:34]} 18. Bd5 {[%clk 0:01:22]}  b6 {[%clk 0:02:28]} 19. Be3 {[%clk 0:01:18]}  Rd8 {[%clk 0:02:21]} 20. Rf1 {[%clk 0:01:08]}  Rf8 {[%clk 0:02:20]} 21. Rxf8+ {[%clk 0:01:08]}  Kxf8 {[%clk 0:02:21]} 22. Rf1+ {[%clk 0:01:09]}  Bf6 {[%clk 0:02:22]} 23. h4 {[%clk 0:01:01]}  Ke7 {[%clk 0:02:21]} 24. Kg2 {[%clk 0:01:02]}  Rxd5 {[%clk 0:02:08]} 25. cxd5 {[%clk 0:01:01]}  Kd6 {[%clk 0:02:09]} 26. Rd1 {[%clk 0:00:52]}  e4 {[%clk 0:02:06]} 27. Bf4+ {[%clk 0:00:49]}  Kd7 {[%clk 0:02:07]} 28. Re1 {[%clk 0:00:48]}  g5 {[%clk 0:02:02]} 29. hxg5 {[%clk 0:00:46]}  hxg5 {[%clk 0:02:03]} 30. Bc1 {[%clk 0:00:46]}  Kd6 {[%clk 0:02:02]} 31. Rxe4 {[%clk 0:00:40]}  Kxd5 {[%clk 0:02:03]} 32. Rg4 {[%clk 0:00:31]}  Nc4 {[%clk 0:02:03]} 33. Bxg5 {[%clk 0:00:13]}  Ne5 {[%clk 0:02:02]} 34. c4+ {[%clk 0:00:14]}  Ke6 {[%clk 0:01:59]} 35. Bxf6 {[%clk 0:00:04]}  Nxg4 {[%clk 0:01:59]} 36. Bg5 {[%clk 0:00:03]}  Ne5 {[%clk 0:01:59]} 37. Bf4 {[%clk 0:00:02]}  Nxc4 {[%clk 0:01:59]} 38. Bb8 {[%clk 0:00:02]}  a6 {[%clk 0:01:59]} 39. Kf3 {[%clk 0:00:03]}  b5 {[%clk 0:01:58]} 40. Ba7 {[%clk 0:00:02]}  Ne5+ {[%clk 0:01:58]} 41. Ke4 {[%clk 0:00:02]}  c4 {[%clk 0:01:54]} 42. g4 {[%clk 0:00:02]}  Nxg4 {[%clk 0:01:54]} 43. Kd4 {[%clk 0:00:02]}  Kd6 {[%clk 0:01:55]} 44. Bb8+ {[%clk 0:00:02]}  Kc6 {[%clk 0:01:55]} 45. Bf4 {[%clk 0:00:02]}  Nf6 {[%clk 0:01:55]} 46. c3 {[%clk 0:00:03]}  Nd5 {[%clk 0:01:56]} 47. Bd2 {[%clk 0:00:03]}  a5 {[%clk 0:01:56]} 48. Be1 {[%clk 0:00:03]}  a4 {[%clk 0:01:56]} 49. a3 {[%clk 0:00:03]}  Nf4 {[%clk 0:01:55]} 50. Bd2 {[%clk 0:00:03]}  Nd3 {[%clk 0:01:54]} 51. Ke4 {[%clk 0:00:03]}  Kc5 {[%clk 0:01:50]} 52. Be3+ {[%clk 0:00:03]}  Kd6 {[%clk 0:01:51]} 53. Bd2 {[%clk 0:00:04]}  Kc6 {[%clk 0:01:45]} 54. Kd4 {[%clk 0:00:04]}  Nc5 {[%clk 0:01:44]} 55. Be3 {[%clk 0:00:03]}  Nb3+ {[%clk 0:01:44]} 56. Ke4 {[%clk 0:00:03]}  Kd6 {[%clk 0:01:44]} 57. Bf4+ {[%clk 0:00:03]}  Ke6 {[%clk 0:01:45]} 58. Be3 {[%clk 0:00:04]}  Kd6 {[%clk 0:01:42]} 59. Bf4+ {[%clk 0:00:04]}  Kc6 {[%clk 0:01:43]} 60. Be3 {[%clk 0:00:05]}  b4 {[%clk 0:01:37]} 61. cxb4 {[%clk 0:00:05]}  Kb5 {[%clk 0:01:37]} 62. Kd5 {[%clk 0:00:04]}  c3 {[%clk 0:01:36]} 63. Ke4 {[%clk 0:00:03]}  c2 {[%clk 0:01:36]} 64. Kd3 {[%clk 0:00:03]}  c1=Q {[%clk 0:01:37]} 65. Bxc1 {[%clk 0:00:04]}  Nxc1+ {[%clk 0:01:38]} 66. Kc2 {[%clk 0:00:04]}  Ne2 {[%clk 0:01:38]} 67. Kd3 {[%clk 0:00:04]}  Nf4+ {[%clk 0:01:38]} 68. Ke4 {[%clk 0:00:04]}  Ne6 {[%clk 0:01:37]} 69. Kd5 {[%clk 0:00:04]}  Nf4+ {[%clk 0:01:36]} 70. Ke4 {[%clk 0:00:05]}  Ne2 {[%clk 0:01:35]} 71. Kd3 {[%clk 0:00:06]}  Ng3 {[%clk 0:01:35]} 72. Kc3 {[%clk 0:00:06]}  Nf5 {[%clk 0:01:34]} 73. Kd3 {[%clk 0:00:06]}  Nd6 {[%clk 0:01:35]} 74. Kc3 {[%clk 0:00:04]}  Nc4 {[%clk 0:01:36]} 75. Kc2 {[%clk 0:00:03]}  Nxa3+ {[%clk 0:01:36]} 76. Kc3 {[%clk 0:00:04]}  Nc4 {[%clk 0:01:37]} 77. Kc2 {[%clk 0:00:04]}  Kxb4 {[%clk 0:01:37]} 0-1


[Site "https://www.chess.com"]

[Event "Titled Tuesday Blitz March 28 Late 2023"]
[White "Mihajlov, Sebastian"]
[Black "Bochnicka, Vladimir"]
[WhiteFideId "1512110"]
[BlackFideId "14943450"]
[WhiteElo "2464"]
[BlackElo "2094"]
[Result "1-0"]
[Round "06"]
[TimeControl "180+2"]
[Date "2023.03.28"]
[WhiteClock "0:00:13"]
[BlackClock "0:00:04"]

1. d4 {[%clk 0:03:00]}  Nf6 {[%clk 0:02:59]} 2. Nf3 {[%clk 0:03:01]}  g6 {[%clk 0:02:59]} 3. c4 {[%clk 0:03:01]}  Bg7 {[%clk 0:02:59]} 4. Nc3 {[%clk 0:03:02]}  O-O {[%clk 0:02:59]} 5. e4 {[%clk 0:03:02]}  d6 {[%clk 0:02:59]} 6. Be2 {[%clk 0:03:03]}  e5 {[%clk 0:03:00]} 7. O-O {[%clk 0:03:03]}  Nc6 {[%clk 0:02:59]} 8. d5 {[%clk 0:03:04]}  Ne7 {[%clk 0:02:59]} 9. Ne1 {[%clk 0:03:05]}  Nd7 {[%clk 0:02:56]} 10. Be3 {[%clk 0:03:05]}  f5 {[%clk 0:02:55]} 11. f3 {[%clk 0:03:06]}  f4 {[%clk 0:02:55]} 12. Bf2 {[%clk 0:03:07]}  g5 {[%clk 0:02:56]} 13. Rc1 {[%clk 0:03:08]}  Ng6 {[%clk 0:02:54]} 14. Nd3 {[%clk 0:03:06]}  Nf6 {[%clk 0:02:49]} 15. c5 {[%clk 0:03:04]}  h5 {[%clk 0:02:25]} 16. cxd6 {[%clk 0:03:00]}  cxd6 {[%clk 0:02:26]} 17. Nb5 {[%clk 0:03:01]}  Ne8 {[%clk 0:01:46]} 18. Nxa7 {[%clk 0:02:43]}  Bd7 {[%clk 0:01:46]} 19. Qb3 {[%clk 0:02:34]}  g4 {[%clk 0:01:39]} 20. Qxb7 {[%clk 0:02:32]}  Rb8 {[%clk 0:01:29]} 21. Nc6 {[%clk 0:02:24]}  Bxc6 {[%clk 0:01:15]} 22. Qxc6 {[%clk 0:02:15]}  Qg5 {[%clk 0:01:15]} 23. Qd7 {[%clk 0:01:36]}  Rf7 {[%clk 0:01:03]} 24. Qa4 {[%clk 0:00:57]}  g3 {[%clk 0:01:02]} 25. Be1 {[%clk 0:00:52]}  Qh4 {[%clk 0:00:26]} 26. h3 {[%clk 0:00:51]}  Nf6 {[%clk 0:00:26]} 27. Bb4 {[%clk 0:00:18]}  Nh7 {[%clk 0:00:23]} 28. Rfd1 {[%clk 0:00:14]}  Ng5 {[%clk 0:00:20]} 29. Bf1 {[%clk 0:00:14]}  Rd8 {[%clk 0:00:16]} 30. Qa5 {[%clk 0:00:14]}  Kh7 {[%clk 0:00:15]} 31. Qxd8 {[%clk 0:00:12]}  Nxf3+ {[%clk 0:00:15]} 32. gxf3 {[%clk 0:00:13]}  Qxd8 {[%clk 0:00:15]} 33. Rc6 {[%clk 0:00:13]}  Rd7 {[%clk 0:00:14]} 34. a4 {[%clk 0:00:13]}  Nh4 {[%clk 0:00:14]} 35. Ne1 {[%clk 0:00:12]}  Bf6 {[%clk 0:00:14]} 36. a5 {[%clk 0:00:12]}  g2 {[%clk 0:00:13]} 37. Bxg2 {[%clk 0:00:11]}  Rg7 {[%clk 0:00:13]} 38. a6 {[%clk 0:00:11]}  Qg8 {[%clk 0:00:13]} 39. Rd2 {[%clk 0:00:11]}  Bd8 {[%clk 0:00:06]} 40. Kf1 {[%clk 0:00:11]}  Nxg2 {[%clk 0:00:06]} 41. Rxg2 {[%clk 0:00:11]}  Rxg2 {[%clk 0:00:06]} 42. Nxg2 {[%clk 0:00:12]}  Qg3 {[%clk 0:00:06]} 43. Rc3 {[%clk 0:00:09]}  Qxh3 {[%clk 0:00:05]} 44. a7 {[%clk 0:00:07]}  Bb6 {[%clk 0:00:05]} 45. a8=Q {[%clk 0:00:07]}  Qh1+ {[%clk 0:00:06]} 46. Ke2 {[%clk 0:00:08]}  Qxg2+ {[%clk 0:00:06]} 47. Kd3 {[%clk 0:00:09]}  Qxf3+ {[%clk 0:00:06]} 48. Kc4 {[%clk 0:00:10]}  Qe2+ {[%clk 0:00:04]} 49. Kb3 {[%clk 0:00:10]}  Qd1+ {[%clk 0:00:04]} 50. Rc2 {[%clk 0:00:07]}  Qd3+ {[%clk 0:00:05]} 51. Bc3 {[%clk 0:00:08]}  Qb5+ {[%clk 0:00:04]} 52. Ka2 {[%clk 0:00:08]}  Qc4+ {[%clk 0:00:04]} 53. Kb1 {[%clk 0:00:07]}  Qf1+ {[%clk 0:00:03]} 54. Rc1 {[%clk 0:00:08]}  Qd3+ {[%clk 0:00:03]} 55. Ka1 {[%clk 0:00:08]}  Qxe4 {[%clk 0:00:03]} 56. Qb7+ {[%clk 0:00:08]}  Kh6 {[%clk 0:00:02]} 57. Qxb6 {[%clk 0:00:08]}  Qxd5 {[%clk 0:00:02]} 58. Bb4 {[%clk 0:00:09]}  e4 {[%clk 0:00:01]} 59. Qxd6+ {[%clk 0:00:09]}  Qxd6 {[%clk 0:00:02]} 60. Bxd6 {[%clk 0:00:10]}  Kg5 {[%clk 0:00:03]} 61. Rg1+ {[%clk 0:00:10]}  Kf5 {[%clk 0:00:03]} 62. Kb1 {[%clk 0:00:11]}  h4 {[%clk 0:00:03]} 63. Kc2 {[%clk 0:00:11]}  h3 {[%clk 0:00:04]} 64. Kd2 {[%clk 0:00:12]}  e3+ {[%clk 0:00:03]} 65. Ke2 {[%clk 0:00:12]}  Ke4 {[%clk 0:00:04]} 66. Rg4 {[%clk 0:00:12]}  h2 {[%clk 0:00:04]} 67. Rxf4+ {[%clk 0:00:13]}  Kd5 {[%clk 0:00:04]} 68. Rh4 {[%clk 0:00:13]} 1-0


[Site "https://www.chess.com"]

[Event "Titled Tuesday Blitz March 28 Late 2023"]
[White "krucki03"]
[Black "Kavutskiy, Konstantin"]
[BlackFideId "2026384"]
[WhiteElo "2368"]
[BlackElo "2369"]
[Result "1/2-1/2"]
[Round "06"]
[TimeControl "180+2"]
[Date "2023.03.28"]
[WhiteClock "0:00:39"]
[BlackClock "0:00:37"]

1. e4 {[%clk 0:02:50]}  Nc6 {[%clk 0:02:55]} 2. Nf3 {[%clk 0:02:48]}  d6 {[%clk 0:02:50]} 3. d4 {[%clk 0:02:48]}  Nf6 {[%clk 0:02:49]} 4. Nc3 {[%clk 0:02:47]}  g6 {[%clk 0:02:48]} 5. Bg5 {[%clk 0:02:37]}  Bg7 {[%clk 0:02:48]} 6. Qd2 {[%clk 0:02:37]}  h6 {[%clk 0:02:48]} 7. Bf4 {[%clk 0:02:35]}  g5 {[%clk 0:02:46]} 8. Be3 {[%clk 0:02:35]}  Ng4 {[%clk 0:02:43]} 9. O-O-O {[%clk 0:02:33]}  a6 {[%clk 0:02:42]} 10. Kb1 {[%clk 0:02:32]}  Bd7 {[%clk 0:02:41]} 11. h4 {[%clk 0:02:32]}  Nxe3 {[%clk 0:02:40]} 12. fxe3 {[%clk 0:02:32]}  g4 {[%clk 0:02:40]} 13. Ng1 {[%clk 0:02:32]}  h5 {[%clk 0:02:40]} 14. Nge2 {[%clk 0:02:31]}  e5 {[%clk 0:02:35]} 15. d5 {[%clk 0:02:30]}  Ne7 {[%clk 0:02:34]} 16. Ng3 {[%clk 0:02:31]}  f5 {[%clk 0:02:12]} 17. exf5 {[%clk 0:02:30]}  Nxf5 {[%clk 0:02:12]} 18. Nxf5 {[%clk 0:02:30]}  Bxf5 {[%clk 0:02:13]} 19. e4 {[%clk 0:02:30]}  Bg6 {[%clk 0:02:05]} 20. Bd3 {[%clk 0:02:25]}  O-O {[%clk 0:02:01]} 21. Ne2 {[%clk 0:02:20]}  Kh7 {[%clk 0:01:58]} 22. Ng3 {[%clk 0:02:20]}  Bh6 {[%clk 0:01:58]} 23. Qe2 {[%clk 0:02:19]}  Rf4 {[%clk 0:01:48]} 24. Nf5 {[%clk 0:02:17]}  Bxf5 {[%clk 0:01:46]} 25. exf5 {[%clk 0:02:17]}  e4 {[%clk 0:01:41]} 26. Bxe4 {[%clk 0:02:10]}  Qe8 {[%clk 0:01:23]} 27. Bd3 {[%clk 0:02:09]}  Qxe2 {[%clk 0:01:17]} 28. Bxe2 {[%clk 0:02:10]}  Bg7 {[%clk 0:01:17]} 29. Bd3 {[%clk 0:02:06]}  Bf6 {[%clk 0:01:14]} 30. Rhf1 {[%clk 0:01:12]}  Rxf1 {[%clk 0:01:11]} 31. Rxf1 {[%clk 0:01:13]}  Re8 {[%clk 0:01:11]} 32. Kc1 {[%clk 0:01:09]}  Kg7 {[%clk 0:01:11]} 33. Kd1 {[%clk 0:01:08]}  Re5 {[%clk 0:01:02]} 34. c4 {[%clk 0:01:00]}  Re8 {[%clk 0:00:59]} 35. b3 {[%clk 0:01:00]}  b6 {[%clk 0:00:57]} 36. Re1 {[%clk 0:00:56]}  Rh8 {[%clk 0:00:52]} 37. g3 {[%clk 0:00:52]}  a5 {[%clk 0:00:52]} 38. a4 {[%clk 0:00:51]}  Be5 {[%clk 0:00:50]} 39. Re3 {[%clk 0:00:40]}  Kf6 {[%clk 0:00:49]} 40. Ke2 {[%clk 0:00:41]}  Rf8 {[%clk 0:00:48]} 41. Kf1 {[%clk 0:00:40]}  Rd8 {[%clk 0:00:48]} 42. Kg2 {[%clk 0:00:40]}  Rh8 {[%clk 0:00:48]} 43. Re1 {[%clk 0:00:40]}  Rb8 {[%clk 0:00:47]} 44. Re3 {[%clk 0:00:40]}  Ra8 {[%clk 0:00:47]} 45. Re1 {[%clk 0:00:41]}  Rf8 {[%clk 0:00:47]} 46. Re3 {[%clk 0:00:41]}  Kg7 {[%clk 0:00:47]} 47. Re1 {[%clk 0:00:42]}  Bf6 {[%clk 0:00:47]} 48. Re6 {[%clk 0:00:42]}  Rc8 {[%clk 0:00:46]} 49. Kf2 {[%clk 0:00:39]}  Kf7 {[%clk 0:00:46]} 50. Kg2 {[%clk 0:00:40]}  Kg7 {[%clk 0:00:41]} 51. Kf2 {[%clk 0:00:39]}  Kf7 {[%clk 0:00:42]} 52. Kg2 {[%clk 0:00:39]}  Kg7 {[%clk 0:00:37]} 1/2-1/2


[Site "https://www.chess.com"]

[Event "Titled Tuesday Blitz March 28 Late 2023"]
[White "Sochacki, Christophe"]
[Black "Onslow, Alfie"]
[WhiteFideId "662569"]
[BlackFideId "436976"]
[WhiteElo "2474"]
[BlackElo "2114"]
[Result "1-0"]
[Round "06"]
[TimeControl "180+2"]
[Date "2023.03.28"]
[WhiteClock "0:00:26"]
[BlackClock "0:00:01"]

1. e4 {[%clk 0:02:58]}  g6 {[%clk 0:02:59]} 2. d4 {[%clk 0:02:58]}  Bg7 {[%clk 0:03:00]} 3. Nc3 {[%clk 0:02:58]}  c6 {[%clk 0:03:00]} 4. h3 {[%clk 0:02:57]}  d5 {[%clk 0:03:00]} 5. e5 {[%clk 0:02:57]}  h5 {[%clk 0:02:58]} 6. f4 {[%clk 0:02:53]}  Nh6 {[%clk 0:02:56]} 7. Be3 {[%clk 0:02:41]}  h4 {[%clk 0:02:49]} 8. Nf3 {[%clk 0:02:40]}  Nf5 {[%clk 0:02:47]} 9. Bf2 {[%clk 0:02:41]}  e6 {[%clk 0:02:47]} 10. Bd3 {[%clk 0:02:40]}  b6 {[%clk 0:02:43]} 11. Qe2 {[%clk 0:02:38]}  a5 {[%clk 0:02:40]} 12. Nd1 {[%clk 0:02:16]}  Ba6 {[%clk 0:02:32]} 13. Ne3 {[%clk 0:02:16]}  Bf8 {[%clk 0:02:12]} 14. O-O-O {[%clk 0:02:13]}  Bxd3 {[%clk 0:02:12]} 15. Rxd3 {[%clk 0:02:13]}  Na6 {[%clk 0:02:07]} 16. Nxf5 {[%clk 0:01:58]}  gxf5 {[%clk 0:02:07]} 17. Rc3 {[%clk 0:01:52]}  Qd7 {[%clk 0:01:48]} 18. Bxh4 {[%clk 0:01:49]}  c5 {[%clk 0:01:40]} 19. Bf6 {[%clk 0:01:44]}  Rg8 {[%clk 0:01:40]} 20. Rd1 {[%clk 0:01:27]}  c4 {[%clk 0:01:36]} 21. Ng5 {[%clk 0:01:23]}  b5 {[%clk 0:01:32]} 22. Qh5 {[%clk 0:01:22]}  Nb4 {[%clk 0:01:06]} 23. Kb1 {[%clk 0:01:21]}  a4 {[%clk 0:01:02]} 24. g4 {[%clk 0:01:09]}  fxg4 {[%clk 0:00:58]} 25. hxg4 {[%clk 0:01:09]}  a3 {[%clk 0:00:52]} 26. b3 {[%clk 0:00:58]}  Rc8 {[%clk 0:00:33]} 27. f5 {[%clk 0:00:56]}  Rxg5 {[%clk 0:00:23]} 28. Qxg5 {[%clk 0:00:55]}  cxb3 {[%clk 0:00:23]} 29. Rxb3 {[%clk 0:00:50]}  Nxc2 {[%clk 0:00:09]} 30. fxe6 {[%clk 0:00:48]}  Qxe6 {[%clk 0:00:07]} 31. Qf5 {[%clk 0:00:46]}  b4 {[%clk 0:00:03]} 32. Qxe6+ {[%clk 0:00:43]}  fxe6 {[%clk 0:00:04]} 33. Rc1 {[%clk 0:00:43]}  Rc4 {[%clk 0:00:02]} 34. Rxc2 {[%clk 0:00:42]}  Rxd4 {[%clk 0:00:03]} 35. g5 {[%clk 0:00:40]}  Rd1+ {[%clk 0:00:03]} 36. Rc1 {[%clk 0:00:39]}  Rd2 {[%clk 0:00:04]} 37. g6 {[%clk 0:00:34]}  Bh6 {[%clk 0:00:01]} 38. g7 {[%clk 0:00:27]}  Kf7 {[%clk 0:00:01]} 39. Rc7+ {[%clk 0:00:26]} 1-0


[Site "https://www.chess.com"]